[Event "Lueneburg Open-A 2019"]
[Site "Lueneburg"]
[Date "2019.08.04"]
[Round "2.34"]
[White "Weishaeutel, Moritz"]
[Black "Schulze, Lukas"]
[Result "1-0"]
[ECO "B72"]
[WhiteElo "2276"]
[BlackElo "1724"]
[Annotator "NA"]
[PlyCount "119"]
[EventDate "2019.08.03"]
[EventType "swiss"]
[EventCountry "GER"]
[SourceTitle "playchess.com"]
[Source "ChessBase"]
[SourceQuality "1"]
[TimeControl "40/5400+30:1800+30"]

1. e4 {[%emt 0:00:00]} c5 {[%emt 0:00:00]} 2. Nf3 {[%emt 0:00:00]} d6 {[%emt 0:00:00]} 3. d4 {[%emt 0:00:00]} cxd4 {[%emt 0:00:00]} 4. Nxd4 {[%emt 0:00:00]} Nf6 {[%emt 0:00:00]} 5. Nc3 {[%emt 0:00:00]} g6 {[%emt 0:00:18]} 6. Be3 {[%emt 0:00:00]} Bg7 {[%emt 0:00:10]} 7. Be2 {[%emt 0:00:09]} Nc6 {[%emt 0:00:17]} 8. Qd2 {[%emt 0:00:07]} O-O {[%emt 0:00:24]} 9. O-O-O {[%emt 0:00:13]} d5 {[%emt 0:01:41]} 10. exd5 {[%emt 0:00:09]} Nxd5 {[%emt 0:00:31]} 11. Nxc6 {[%emt 0:00:03]} bxc6 {[%emt 0:00:14]} 12. Nxd5 {[%emt 0:00:02]} cxd5 {[%emt 0:00:31]} 13. Qxd5 {[%emt 0:00:01]} Qc7 {[%emt 0:00:52]} 14. Qxa8 {[%emt 0:00:07]} Bf5 {[%emt 0:00:14]} 15. Qxf8+ {[%emt 0:00:03]} Kxf8 {[%emt 0:11:49]} 16. Rd2 {[%emt 0:00:01]} Be5 {[%emt 0:02:22]} 17. Bh6+ {[%emt 0:03:07]} Bg7 {[%emt 0:02:01]} 18. Bxg7+ {[%emt 0:00:50]} Kxg7 {[%emt 0:00:02]} 19. g3 {[%emt 0:05:38]} Qc6 {[%emt 0:05:58]} 20. f3 {[%emt 0:07:44]} Qc5 {[%emt 0:05:58]} 21. Rhd1 {[%emt 0:39:03]} Qf2 {[%emt 0:03:23]} 22. g4 {[%emt 0:00:55]} Be6 {[%emt 0:01:21]} 23. Bc4 {[%emt 0:00:27]} Qxf3 {[%emt 0:07:38]} 24. Bxe6 {[%emt 0:00:05]} fxe6 {[%emt 0:00:08]} 25. Rd7 {[%emt 0:03:09]} Kf7 {[%emt 0:02:54]} 26. b3 {[%emt 0:05:41]} Qf4+ {[%emt 0:07:05]} 27. Kb1 {[%emt 0:01:42]} a6 {[%emt 0:04:40]} 28. h3 {[%emt 0:03:18]} Qf3 {[%emt 0:01:22]} 29. R1d3 {[%emt 0:01:27]} Qf1+ {[%emt 0:00:57]} 30. Kb2 {[%emt 0:00:02]} Qf6+ {[%emt 0:00:47]} 31. Ka3 {[%emt 0:03:08]} Qg5 {[%emt 0:01:13]} 32. c3 {[%emt 0:03:35]} a5 {[%emt 0:08:44]} 33. Ka4 {[%emt 0:02:47]} Qc1 {[%emt 0:01:03]} 34. R7d4 {[%emt 0:01:48]} Qb2 {[%emt 0:01:07]} 35. a3 {[%emt 0:00:01]} Qc2 {[%emt 0:04:38]} 36. Rf3+ {[%emt 0:00:42]} Ke8 {[%emt 0:00:42]} 37. Re3 {[%emt 0:00:06]} e5 {[%emt 0:02:47]} 38. Rde4 {[%emt 0:00:24]} Qg2 {[%emt 0:02:02]} 39. c4 {[%emt 0:01:13]} Kf8 {[%emt 0:01:55]} 40. Rxe5 {[%emt 0:01:59]} Qa8 {[%emt 0:00:18]} 41. Rxe7 {[%emt 0:32:56]} Qc6+ {[%emt 0:31:23]} 42. Kxa5 {[%emt 0:00:03]} Qc5+ {[%emt 0:00:29]} 43. Ka4 {[%emt 0:00:06]} Qc6+ {[%emt 0:01:17]} 44. Kb4 {[%emt 0:00:37]} Qb6+ {[%emt 0:01:06]} 45. Kc3 {[%emt 0:00:20]} Qa5+ {[%emt 0:00:06]} 46. Kd4 {[%emt 0:08:48]} Qd2+ {[%emt 0:03:48]} 47. Kc5 {[%emt 0:00:01]} Qa5+ {[%emt 0:00:11]} 48. Kd6 {[%emt 0:00:17]} Qd8+ {[%emt 0:01:41]} 49. Kc6 {[%emt 0:00:22]} Qa8+ {[%emt 0:03:00]} 50. Kb6 {[%emt 0:01:53]} Qd8+ {[%emt 0:01:06]} 51. Kb7 {[%emt 0:01:20]} Qd6 {[%emt 0:02:43]} 52. g5 {[%emt 0:01:22]} Qxa3 {[%emt 0:03:16]} 53. Re8+ {[%emt 0:00:07]} Kf7 {[%emt 0:00:04]} 54. R3e7+ {[%emt 0:00:03]} Qxe7+ {[%emt 0:00:08]} 55. Rxe7+ {[%emt 0:00:04]} Kxe7 {[%emt 0:00:07]} 56. c5 {[%emt 0:00:02]} Ke6 {[%emt 0:00:07]} 57. c6 {[%emt 0:00:03]} Ke5 {[%emt 0:00:04]} 58. c7 {[%emt 0:00:03]} Ke4 {[%emt 0:00:03]} 59. c8=Q {[%emt 0:00:04]} Ke3 {[%emt 0:00:05]} 60. Qg4 {[%emt 0:00:06]} 1-0

[Event "Lueneburg Open-A 2019"]
[Site "Lueneburg"]
[Date "2019.08.04"]
[Round "2.35"]
[White "Andersen, Jens Knud"]
[Black "Lu, Siyuan"]
[Result "1-0"]
[ECO "D08"]
[WhiteElo "2141"]
[BlackElo "1711"]
[Annotator "NA"]
[PlyCount "48"]
[EventDate "2019.08.03"]
[EventType "swiss"]
[EventCountry "GER"]
[SourceTitle "playchess.com"]
[Source "ChessBase"]
[SourceQuality "1"]
[TimeControl "40/5400+30:1800+30"]

1. Nf3 {[%emt 0:00:00]} Nc6 {[%emt 0:00:00]} 2. d4 {[%emt 0:00:17]} d5 {[%emt 0:00:00]} 3. c4 {[%emt 0:00:24]} e5 {[%emt 0:00:00]} 4. dxe5 {[%emt 0:01:13]} d4 {[%emt 0:00:00]} 5. a3 {[%emt 0:00:37]} Bg4 {[%emt 0:01:02]} 6. Nbd2 {[%emt 0:03:14]} Nge7 {[%emt 0:02:03]} 7. g3 {[%emt 0:01:38]} Qd7 {[%emt 0:08:02]} 8. Bg2 {[%emt 0:01:28]} Ng6 {[%emt 0:03:04]} 9. h3 {[%emt 0:09:30]} Bxf3 {[%emt 0:03:22]} 10. Nxf3 {[%emt 0:00:23]} O-O-O {[%emt 0:01:29]} 11. Qa4 {[%emt 0:11:41]} d3 {[%emt 0:07:48]} 12. exd3 {[%emt 0:02:50]} Qxd3 {[%emt 0:02:12]} 13. Be3 {[%emt 0:00:46]} Ngxe5 {[%emt 0:17:53]} 14. Nxe5 {[%emt 0:04:58]} Nxe5 {[%emt 0:00:09]} 15. Qxa7 {[%emt 0:07:51]} Qxc4 {[%emt 0:02:39]} 16. Qxb7+ {[%emt 0:06:32]} Kd7 {[%emt 0:00:07]} 17. Bf1 {[%emt 0:10:28]} Qe6 {[%emt 0:17:36]} 18. Bb5+ {[%emt 0:02:02]} Ke7 {[%emt 0:00:16]} 19. Qxc7+ {[%emt 0:00:44]} Nd7 {[%emt 0:00:17]} 20. O-O-O {[%emt 0:01:40]} Ke8 {[%emt 0:03:29]} 21. Rxd7 {[%emt 0:01:28]} Rxd7 {[%emt 0:02:02]} 22. Rd1 {[%emt 0:01:41]} Ke7 {[%emt 0:04:43]} 23. Rxd7+ {[%emt 0:00:20]} Kf6 {[%emt 0:00:12]} 24. Qf4+ {[%emt 0:00:36]} Qf5 {[%emt 0:01:10]} 1-0

[Event "Lueneburg Open-A 2019"]
[Site "Lueneburg"]
[Date "2019.08.04"]
[Round "2.36"]
[White "Kroencke, Manfred"]
[Black "Doederlein, Etienne"]
[Result "1-0"]
[ECO "B13"]
[WhiteElo "2047"]
[BlackElo "1868"]
[Annotator "NA"]
[PlyCount "53"]
[EventDate "2019.08.03"]
[EventType "swiss"]
[EventCountry "GER"]
[SourceTitle "playchess.com"]
[Source "ChessBase"]
[SourceQuality "1"]
[TimeControl "40/5400+30:1800+30"]

1. e4 {[%emt 0:00:00]} c6 {[%emt 1:30:30]} 2. d4 {[%emt 0:00:18]} d5 {[%emt 0:00:00]} 3. exd5 {[%emt 0:00:11]} cxd5 {[%emt 0:00:00]} 4. Bd3 {[%emt 0:00:15]} Nc6 {[%emt 0:00:00]} 5. c3 {[%emt 0:00:16]} Nf6 {[%emt 0:00:00]} 6. Bf4 {[%emt 0:00:53]} Bg4 {[%emt 0:00:00]} 7. Qb3 {[%emt 0:00:36]} Qc8 {[%emt 0:00:00]} 8. Nd2 {[%emt 0:01:36]} e6 {[%emt 0:00:00]} 9. Ngf3 {[%emt 0:01:54]} Bh5 {[%emt 0:00:00]} 10. h3 {[%emt 0:03:34]} Be7 {[%emt 0:00:00]} 11. O-O {[%emt 0:02:35]} Bg6 {[%emt 0:00:00]} 12. Bxg6 {[%emt 0:01:34]} hxg6 {[%emt 0:00:00]} 13. Ne5 {[%emt 0:00:16]} O-O {[%emt 0:00:00]} 14. Rfe1 {[%emt 0:06:16]} Nd7 {[%emt 0:00:00]} 15. Ng4 {[%emt 0:04:35]} Nf6 {[%emt 0:00:00]} 16. Qd1 {[%emt 0:01:31]} Rd8 {[%emt 0:00:00]} 17. Qf3 {[%emt 0:02:46]} Nxg4 {[%emt 0:00:00]} 18. Qxg4 {[%emt 0:01:11]} Bd6 {[%emt 0:00:00]} 19. Nf3 {[%emt 0:00:51]} Bxf4 {[%emt 0:00:00]} 20. Qxf4 {[%emt 0:00:17]} Qb8 {[%emt 0:09:30]} 21. Qh4 {[%emt 0:01:11]} Qd6 {[%emt 0:00:00]} 22. Ng5 {[%emt 0:00:54]} Ne7 {[%emt 0:00:00]} 23. Qh7+ {[%emt 0:00:45]} Kf8 {[%emt 0:00:00]} 24. Re3 {[%emt 0:01:40]} Nf5 {[%emt 0:00:00]} 25. Rae1 {[%emt 0:04:49]} Qf4 {[%emt 0:00:00]} 26. Rxe6 {[%emt 1:02:16]} Qd6 27. R6e3 {[%emt 0:00:30]} 1-0

[Event "Lueneburg Open-A 2019"]
[Site "Lueneburg"]
[Date "2019.08.04"]
[Round "2.37"]
[White "Guo, Jacob Tingshen"]
[Black "Anderberg, Peter"]
[Result "0-1"]
[ECO "D24"]
[WhiteElo "1360"]
[BlackElo "2014"]
[Annotator "NA"]
[PlyCount "50"]
[EventDate "2019.08.03"]
[EventType "swiss"]
[EventCountry "GER"]
[SourceTitle "playchess.com"]
[Source "ChessBase"]
[SourceQuality "1"]
[TimeControl "40/5400+30:1800+30"]

1. d4 {[%emt 0:00:00]} Nf6 {[%emt 0:05:37]} 2. c4 {[%emt 0:00:05]} e6 {[%emt 0:00:13]} 3. Nc3 {[%emt 0:00:16]} d5 {[%emt 0:00:37]} 4. Nf3 {[%emt 0:00:55]} c5 {[%emt 0:02:10]} 5. Bg5 {[%emt 0:02:28]} dxc4 {[%emt 0:04:29]} 6. e3 {[%emt 0:03:35]} Nc6 {[%emt 0:02:25]} 7. dxc5 {[%emt 0:04:18]} Qa5 {[%emt 0:04:04]} 8. Bxf6 {[%emt 0:06:16]} gxf6 {[%emt 0:00:01]} 9. Bxc4 {[%emt 0:01:42]} Qxc5 {[%emt 0:02:04]} 10. Bb3 {[%emt 0:03:06]} Bd7 {[%emt 0:03:38]} 11. O-O {[%emt 0:02:22]} O-O-O {[%emt 0:02:34]} 12. Ne4 {[%emt 0:03:49]} Qe7 {[%emt 0:01:21]} 13. Qc2 {[%emt 0:03:18]} f5 {[%emt 0:03:26]} 14. Ng3 {[%emt 0:02:10]} h5 {[%emt 0:03:40]} 15. h3 {[%emt 0:04:05]} Kb8 {[%emt 0:04:26]} 16. Rfd1 {[%emt 0:03:29]} Bg7 {[%emt 0:06:20]} 17. Rac1 {[%emt 0:04:33]} h4 {[%emt 0:05:02]} 18. Ne2 {[%emt 0:02:33]} Rhg8 {[%emt 0:07:47]} 19. Kh1 {[%emt 0:08:27]} Rc8 {[%emt 0:05:57]} 20. Qd3 {[%emt 0:03:24]} Rgd8 {[%emt 0:00:55]} 21. Qb1 {[%emt 0:01:48]} Bf6 {[%emt 0:02:36]} 22. Nc3 {[%emt 0:06:44]} Na5 {[%emt 0:02:36]} 23. Ba4 {[%emt 0:03:42]} Rxc3 {[%emt 0:02:28]} 24. Bxd7 {[%emt 0:03:37]} Rxc1 {[%emt 0:00:10]} 25. Rxc1 {[%emt 0:03:05]} Qxd7 {[%emt 0:00:17]} 0-1

[Event "Lueneburg Open-A 2019"]
[Site "Lueneburg"]
[Date "2019.08.06"]
[Round "4.1"]
[White "Colpe, Malte"]
[Black "Ovsejevitsch, Sergei"]
[Result "1/2-1/2"]
[ECO "E01"]
[WhiteElo "2367"]
[BlackElo "2590"]
[Annotator "ChessBase"]
[PlyCount "52"]
[EventDate "2019.08.03"]
[EventType "swiss"]
[EventCountry "GER"]
[SourceTitle "playchess.com"]
[Source "ChessBase"]
[SourceQuality "1"]
[TimeControl "40/5400+30:1800+30"]

1. d4 {[%emt 0:00:00]} Nf6 {[%emt 0:00:00]} 2. c4 {[%emt 0:00:00]} e6 {[%emt 0:00:00]} 3. g3 {[%emt 0:00:06]} d5 {[%emt 0:00:24]} 4. Bg2 {[%emt 0:00:14]} Bb4+ {[%emt 0:00:12]} 5. Bd2 {[%emt 0:00:10]} Bd6 {[%emt 0:00:13]} 6. Nc3 {[%emt 0:00:51]} c6 {[%emt 0:00:56]} 7. e4 {[%emt 0:01:49]} Nxe4 {[%emt 0:03:11]} 8. Nxe4 {[%emt 0:00:23]} dxe4 {[%emt 0:00:04]} 9. Bxe4 {[%emt 0:00:12]} Nd7 {[%emt 0:03:17]} 10. Nf3 {[%emt 0:01:16]} Nf6 {[%emt 0:05:24]} 11. Bc2 {[%emt 0:00:14]} b6 {[%emt 0:20:26]} 12. Qe2 {[%emt 0:14:49]} Qc7 {[%emt 0:01:27]} 13. Bc3 {[%emt 0:04:53]} Ba6 {[%emt 0:04:36]} 14. Bd3 {[%emt 0:05:04]} O-O-O {[%emt 0:13:57]} 15. O-O-O {[%emt 0:07:07]} c5 {[%emt 0:04:14]} 16. dxc5 {[%emt 0:05:24]} Bxc5 {[%emt 0:00:59]} 17. Rhe1 {[%emt 0:03:35]} Rxd3 {[%emt 0:05:50]} 18. Qxd3 {[%emt 0:02:01]} Bxf2 {[%emt 0:00:22]} 19. Bxf6 {[%emt 0:21:16]} gxf6 {[%emt 0:02:03]} 20. Re4 {[%emt 0:00:18]} f5 {[%emt 0:03:22]} 21. Rf4 {[%emt 0:02:27]} Bc5 {[%emt 0:05:52]} 22. Qc3 {[%emt 0:02:11]} Re8 {[%emt 0:02:53]} 23. b4 {[%emt 0:08:47]} Bf8 {[%emt 0:01:06]} 24. Kb2 {[%emt 0:00:50]} Bb7 {[%emt 0:00:41]} 25. Kb3 {[%emt 0:01:41]} a5 {[%emt 0:09:53]} 26. a3 {[%emt 0:01:22]} Be4 {[%emt 0:00:55]} 1/2-1/2

[Event "Lueneburg Open-A 2019"]
[Site "Lueneburg"]
[Date "2019.08.06"]
[Round "4.6"]
[White "Wachinger, David"]
[Black "Sriram, Jha"]
[Result "1-0"]
[ECO "D94"]
[WhiteElo "2045"]
[BlackElo "2381"]
[Annotator "NA"]
[PlyCount "115"]
[EventDate "2019.08.03"]
[EventType "swiss"]
[EventCountry "GER"]
[SourceTitle "playchess.com"]
[Source "ChessBase"]
[SourceQuality "1"]
[TimeControl "40/5400+30:1800+30"]

1. d4 {[%emt 1:30:30]} d5 {[%emt 0:01:44]} 2. c4 {[%emt 0:00:00]} c6 {[%emt 0:00:10]} 3. Nf3 {[%emt 0:00:00]} Nf6 {[%emt 0:00:07]} 4. Nc3 {[%emt 0:00:00]} a6 {[%emt 0:03:22]} 5. e3 {[%emt 0:00:00]} g6 {[%emt 0:02:28]} 6. Bd3 {[%emt 0:00:00]} Bg7 {[%emt 0:00:06]} 7. O-O {[%emt 0:00:00]} O-O {[%emt 0:00:07]} 8. Qb3 {[%emt 0:00:00]} e6 {[%emt 0:04:37]} 9. Bd2 {[%emt 0:00:00]} Nbd7 {[%emt 0:03:27]} 10. Rfd1 {[%emt 0:00:00]} Re8 {[%emt 0:07:34]} 11. Be1 {[%emt 0:00:00]} Qe7 {[%emt 0:04:45]} 12. h3 {[%emt 0:00:00]} dxc4 {[%emt 0:12:56]} 13. Bxc4 {[%emt 0:00:00]} b5 {[%emt 0:01:35]} 14. Be2 {[%emt 0:00:00]} c5 {[%emt 0:01:10]} 15. a4 {[%emt 0:00:00]} b4 {[%emt 0:04:44]} 16. Nb1 {[%emt 0:00:00]} a5 {[%emt 0:01:01]} 17. Nbd2 {[%emt 0:00:00]} Bb7 {[%emt 0:02:08]} 18. Rac1 {[%emt 0:00:00]} cxd4 {[%emt 0:05:04]} 19. Nxd4 {[%emt 0:00:00]} Nc5 {[%emt 0:00:44]} 20. Qa2 {[%emt 0:00:00]} Nfd7 {[%emt 0:06:59]} 21. Bb5 {[%emt 0:00:00]} Bxd4 {[%emt 0:02:39]} 22. exd4 {[%emt 0:00:00]} Bd5 {[%emt 0:01:24]} 23. b3 {[%emt 0:00:00]} Nb7 {[%emt 0:07:05]} 24. Nc4 {[%emt 0:00:00]} Rad8 {[%emt 0:04:33]} 25. Bd2 {[%emt 0:00:00]} Qh4 {[%emt 0:04:22]} 26. Be3 {[%emt 0:00:00]} Rf8 {[%emt 0:01:51]} 27. Qd2 {[%emt 0:00:00]} f6 {[%emt 0:04:15]} 28. Bf4 {[%emt 0:00:06]} Rf7 {[%emt 0:00:13]} 29. Bg3 {[%emt 0:00:32]} Qh5 {[%emt 0:01:06]} 30. Qe3 {[%emt 0:02:36]} Nf8 {[%emt 0:00:57]} 31. Nb6 {[%emt 0:00:56]} Nd6 {[%emt 0:06:16]} 32. Be2 {[%emt 0:04:21]} Qf5 {[%emt 0:00:00]} 33. Nxd5 {[%emt 0:01:03]} exd5 {[%emt 0:01:34]} 34. Bg4 {[%emt 0:02:43]} Qe4 {[%emt 0:00:10]} 35. Qd2 {[%emt 0:00:10]} Qe7 {[%emt 0:01:42]} 36. Bxd6 {[%emt 0:00:37]} Qxd6 {[%emt 0:02:10]} 37. Rc5 {[%emt 0:00:01]} Qb6 {[%emt 0:00:23]} 38. Rdc1 {[%emt 0:01:55]} f5 {[%emt 0:01:06]} 39. Bf3 {[%emt 0:00:18]} Ne6 {[%emt 0:00:49]} 40. Bxd5 {[%emt 0:02:32]} Nxc5 {[%emt 0:01:26]} 41. dxc5 {[%emt 0:02:13]} Qf6 {[%emt 0:00:21]} 42. Bxf7+ {[%emt 0:00:15]} Kxf7 {[%emt 0:00:03]} 43. Qf4 {[%emt 0:01:18]} Rc8 {[%emt 0:02:25]} 44. Qc4+ {[%emt 0:04:28]} Qe6 {[%emt 0:00:10]} 45. c6 {[%emt 0:04:55]} Qxc4 {[%emt 0:01:18]} 46. Rxc4 {[%emt 0:00:01]} Ke6 {[%emt 0:00:14]} 47. Rc5 {[%emt 0:00:12]} Ra8 {[%emt 0:05:05]} 48. c7 {[%emt 0:00:19]} Kd7 {[%emt 0:00:02]} 49. g4 {[%emt 0:00:12]} fxg4 {[%emt 0:00:22]} 50. hxg4 {[%emt 0:00:07]} Kc8 {[%emt 0:00:30]} 51. g5 {[%emt 0:12:06]} Ra7 {[%emt 0:00:19]} 52. Kg2 {[%emt 0:00:38]} Rxc7 {[%emt 0:00:06]} 53. Rxc7+ {[%emt 0:00:57]} Kxc7 {[%emt 0:00:01]} 54. Kf3 {[%emt 0:00:09]} Kd6 {[%emt 0:08:37]} 55. Ke4 {[%emt 0:00:19]} Ke6 {[%emt 0:00:02]} 56. f4 {[%emt 0:01:26]} Kd6 {[%emt 0:08:51]} 57. Kd4 {[%emt 0:00:07]} Kc6 {[%emt 0:01:15]} 58. Kc4 {[%emt 0:00:08]} 1-0

[Event "Lueneburg Open-A 2019"]
[Site "Lueneburg"]
[Date "2019.08.06"]
[Round "4.7"]
[White "Andersen, Jens Knud"]
[Black "Feuerstack, Aljoscha"]
[Result "0-1"]
[ECO "B14"]
[WhiteElo "2141"]
[BlackElo "2441"]
[Annotator "NA"]
[PlyCount "136"]
[EventDate "2019.08.03"]
[EventType "swiss"]
[EventCountry "GER"]
[SourceTitle "playchess.com"]
[Source "ChessBase"]
[SourceQuality "1"]
[TimeControl "40/5400+30:1800+30"]

1. d4 {[%emt 0:00:00]} d5 {[%emt 0:00:00]} 2. Nf3 {[%emt 0:00:08]} Nf6 {[%emt 0:00:00]} 3. e3 {[%emt 0:00:35]} c5 {[%emt 0:00:26]} 4. c4 {[%emt 0:00:20]} cxd4 {[%emt 0:01:13]} 5. exd4 {[%emt 0:00:21]} g6 {[%emt 0:00:18]} 6. Nc3 {[%emt 0:00:55]} Bg7 {[%emt 0:00:07]} 7. Bg5 {[%emt 0:03:45]} Ne4 {[%emt 0:03:35]} 8. Be3 {[%emt 0:02:24]} Nxc3 {[%emt 0:03:43]} 9. bxc3 {[%emt 0:00:13]} O-O {[%emt 0:00:09]} 10. cxd5 {[%emt 0:03:09]} Qxd5 {[%emt 0:00:21]} 11. Qb3 {[%emt 0:00:17]} Qa5 {[%emt 0:02:22]} 12. Bc4 {[%emt 0:12:38]} Nc6 {[%emt 0:04:50]} 13. O-O {[%emt 0:12:09]} Qc7 {[%emt 0:01:49]} 14. Bd5 {[%emt 0:05:17]} Bf5 {[%emt 0:02:40]} 15. Rfd1 {[%emt 0:15:07]} Na5 {[%emt 0:11:42]} 16. Qa4 {[%emt 0:05:25]} Rad8 {[%emt 0:12:50]} 17. Bb3 {[%emt 0:02:27]} Bg4 {[%emt 0:00:45]} 18. Rac1 {[%emt 0:02:27]} b6 {[%emt 0:01:37]} 19. d5 {[%emt 0:07:17]} Bxf3 {[%emt 0:07:57]} 20. gxf3 {[%emt 0:00:03]} Rc8 {[%emt 0:00:10]} 21. c4 {[%emt 0:02:25]} Bb2 {[%emt 0:07:18]} 22. Rc2 {[%emt 0:01:18]} Be5 {[%emt 0:00:05]} 23. h3 {[%emt 0:04:46]} Bf4 {[%emt 0:01:19]} 24. Bd4 {[%emt 0:02:34]} Rfd8 {[%emt 0:10:36]} 25. Re2 {[%emt 0:03:26]} Bd6 {[%emt 0:06:07]} 26. Rde1 {[%emt 0:01:40]} Qd7 {[%emt 0:01:42]} 27. Qxd7 {[%emt 0:01:39]} Rxd7 {[%emt 0:00:05]} 28. Ba4 {[%emt 0:02:08]} Rdc7 {[%emt 0:03:06]} 29. Bb5 {[%emt 0:00:11]} Nxc4 {[%emt 0:12:52]} 30. Ba6 {[%emt 0:00:20]} Ra8 {[%emt 0:00:03]} 31. Rc1 {[%emt 0:01:47]} Ne5 {[%emt 0:00:28]} 32. Rxc7 {[%emt 0:00:39]} Nxf3+ {[%emt 0:00:05]} 33. Kg2 {[%emt 0:02:18]} Nxd4 {[%emt 0:00:06]} 34. Rexe7 {[%emt 0:00:55]} Bxe7 {[%emt 0:01:24]} 35. Rxe7 {[%emt 0:00:02]} Kf8 {[%emt 0:00:08]} 36. Rb7 {[%emt 0:02:18]} Rd8 {[%emt 0:04:49]} 37. Bc4 {[%emt 0:01:07]} Rc8 {[%emt 0:00:30]} 38. Ba6 {[%emt 0:02:01]} Rd8 {[%emt 0:00:05]} 39. Bc4 {[%emt 0:00:08]} Rc8 {[%emt 0:01:16]} 40. Ba6 {[%emt 0:00:11]} Rc5 {[%emt 0:00:48]} 41. d6 {[%emt 0:05:58]} Ne6 {[%emt 0:14:18]} 42. Rxa7 {[%emt 0:04:33]} Rg5+ {[%emt 0:02:17]} 43. Kf3 {[%emt 0:02:50]} Ra5 {[%emt 0:03:32]} 44. Ra8+ {[%emt 0:01:03]} Kg7 {[%emt 0:00:03]} 45. Bb7 {[%emt 0:00:21]} Kf6 {[%emt 0:05:44]} 46. Rxa5 {[%emt 0:03:37]} bxa5 {[%emt 0:00:02]} 47. Ke3 {[%emt 0:08:41]} Ke5 {[%emt 0:03:50]} 48. d7 {[%emt 0:00:14]} Kd6 {[%emt 0:01:41]} 49. Bc8 {[%emt 0:00:19]} f5 {[%emt 0:00:06]} 50. h4 {[%emt 0:02:47]} h6 {[%emt 0:00:31]} 51. f4 {[%emt 0:00:56]} h5 {[%emt 0:03:10]} 52. Kf3 {[%emt 0:02:13]} Ke7 {[%emt 0:00:04]} 53. Ke3 {[%emt 0:00:29]} Kd8 {[%emt 0:00:10]} 54. a4 {[%emt 0:00:36]} Kc7 {[%emt 0:00:35]} 55. Kd3 {[%emt 0:02:15]} Nxf4+ {[%emt 0:01:23]} 56. Kd4 {[%emt 0:02:28]} Ne6+ {[%emt 0:00:24]} 57. Kd5 {[%emt 0:01:17]} Nf8 {[%emt 0:00:21]} 58. d8=Q+ {[%emt 0:00:42]} Kxd8 {[%emt 0:00:01]} 59. Ba6 {[%emt 0:00:02]} Nd7 {[%emt 0:00:38]} 60. Kd6 {[%emt 0:00:55]} f4 {[%emt 0:00:32]} 61. Bd3 {[%emt 0:00:32]} f3 {[%emt 0:00:16]} 62. Bxg6 {[%emt 0:00:16]} f2 {[%emt 0:00:02]} 63. Bd3 {[%emt 0:00:10]} Nb6 {[%emt 0:00:19]} 64. Kc6 {[%emt 0:01:12]} Nxa4 {[%emt 0:00:11]} 65. Kb5 {[%emt 0:00:10]} Nb2 {[%emt 0:00:10]} 66. Be2 {[%emt 0:00:08]} a4 {[%emt 0:00:06]} 67. Kb4 {[%emt 0:00:03]} Ke7 {[%emt 0:00:13]} 68. Ka3 {[%emt 0:00:08]} Nd1 {[%emt 0:00:13]} 0-1

[Event "Lueneburg Open-A 2019"]
[Site "Lueneburg"]
[Date "2019.08.06"]
[Round "4.9"]
[White "Kroencke, Manfred"]
[Black "Stork, Oliver"]
[Result "0-1"]
[ECO "C48"]
[WhiteElo "2047"]
[BlackElo "2322"]
[Annotator "NA"]
[PlyCount "120"]
[EventDate "2019.08.03"]
[EventType "swiss"]
[EventCountry "GER"]
[SourceTitle "playchess.com"]
[Source "ChessBase"]
[SourceQuality "1"]
[TimeControl "40/5400+30:1800+30"]

1. e4 {[%emt 0:00:00]} e5 {[%emt 0:00:00]} 2. Nf3 {[%emt 0:00:54]} Nc6 {[%emt 0:00:00]} 3. Nc3 {[%emt 0:00:26]} Nf6 {[%emt 0:00:07]} 4. Bb5 {[%emt 0:00:51]} Bc5 {[%emt 0:02:28]} 5. Nxe5 {[%emt 0:05:15]} Nxe5 {[%emt 0:00:23]} 6. d4 {[%emt 0:00:13]} Bb4 {[%emt 0:07:11]} 7. dxe5 {[%emt 0:02:06]} Nxe4 {[%emt 0:00:16]} 8. Qd4 {[%emt 0:08:47]} Nxc3 {[%emt 0:02:32]} 9. bxc3 {[%emt 0:07:45]} Be7 {[%emt 0:00:11]} 10. Qg4 {[%emt 0:02:11]} g6 {[%emt 0:00:25]} 11. Qf3 {[%emt 0:07:33]} Bg5 {[%emt 0:08:36]} 12. Ba3 {[%emt 0:03:52]} Be7 {[%emt 0:00:08]} 13. Bc1 {[%emt 0:01:51]} Bg5 {[%emt 0:13:15]} 14. Ba3 {[%emt 0:01:01]} Be7 {[%emt 0:00:30]} 15. Bc1 {[%emt 0:00:11]} O-O {[%emt 0:04:30]} 16. Bh6 {[%emt 0:05:37]} d6 {[%emt 0:00:11]} 17. Bxf8 {[%emt 0:00:52]} Bxf8 {[%emt 0:00:10]} 18. exd6 {[%emt 0:03:44]} cxd6 {[%emt 0:00:15]} 19. O-O {[%emt 0:03:10]} Qc7 {[%emt 0:02:31]} 20. Ba4 {[%emt 0:01:51]} h5 {[%emt 0:07:27]} 21. Bb3 {[%emt 0:01:17]} Bg7 {[%emt 0:03:08]} 22. Rab1 {[%emt 0:03:45]} Bg4 {[%emt 0:05:58]} 23. Qd3 {[%emt 0:02:24]} Bf5 {[%emt 0:02:35]} 24. Qf3 {[%emt 0:02:25]} Rc8 {[%emt 0:04:38]} 25. h3 {[%emt 0:01:15]} Qd7 {[%emt 0:03:20]} 26. c4 {[%emt 0:05:07]} Rc5 {[%emt 0:05:27]} 27. Rbd1 {[%emt 0:00:40]} a5 {[%emt 0:06:20]} 28. a4 {[%emt 0:00:29]} Be6 {[%emt 0:00:08]} 29. Qd3 {[%emt 0:00:36]} Bf8 {[%emt 0:00:06]} 30. Rfe1 {[%emt 0:01:22]} Qc8 {[%emt 0:01:15]} 31. Re3 {[%emt 0:01:51]} b6 {[%emt 0:06:46]} 32. Rde1 {[%emt 0:00:11]} Bd7 {[%emt 0:01:50]} 33. c3 {[%emt 0:03:30]} Bc6 {[%emt 0:07:21]} 34. Rg3 {[%emt 0:00:13]} Qd7 {[%emt 0:01:47]} 35. Qe3 {[%emt 0:01:09]} Re5 {[%emt 0:01:43]} 36. Qd2 {[%emt 0:00:13]} Bh6 {[%emt 0:00:18]} 37. Qd1 {[%emt 0:00:19]} Bf4 {[%emt 0:00:22]} 38. Rxe5 {[%emt 0:00:21]} Bxe5 {[%emt 0:00:24]} 39. Re3 {[%emt 0:00:23]} Qf5 {[%emt 0:01:16]} 40. Qd3 {[%emt 0:02:24]} Qg5 {[%emt 0:01:50]} 41. g3 {[%emt 0:31:00]} h4 {[%emt 0:31:37]} 42. Kf1 {[%emt 0:05:55]} hxg3 {[%emt 0:00:00]} 43. fxg3 {[%emt 0:00:00]} Kg7 {[%emt 0:00:00]} 44. Bd1 {[%emt 0:00:00]} Bd7 {[%emt 0:00:00]} 45. g4 {[%emt 0:00:00]} Bc6 {[%emt 0:00:00]} 46. Bf3 {[%emt 0:00:00]} Qf4 {[%emt 0:00:00]} 47. Re4 {[%emt 0:00:00]} Qg3 {[%emt 0:00:00]} 48. Be2 {[%emt 0:00:00]} Bxe4 {[%emt 0:00:00]} 49. Qxe4 {[%emt 0:00:00]} Qxh3+ {[%emt 0:00:00]} 50. Qg2 {[%emt 0:00:00]} Qxc3 {[%emt 0:00:00]} 51. Qf3 {[%emt 0:00:00]} Qa1+ {[%emt 0:00:00]} 52. Bd1 {[%emt 0:00:00]} Bd4 {[%emt 0:00:00]} 53. Qd3 {[%emt 0:00:00]} Qb2 {[%emt 0:00:00]} 54. Qc2 {[%emt 0:00:00]} Kf6 {[%emt 0:02:26]} 55. Ke2 {[%emt 0:00:00]} Ke5 {[%emt 0:00:53]} 56. Kf3 {[%emt 0:00:00]} Qa3+ {[%emt 0:01:27]} 57. Qb3 {[%emt 0:00:00]} Qxb3+ {[%emt 0:00:14]} 58. Bxb3 {[%emt 0:00:00]} Bc5 {[%emt 0:00:06]} 59. Bd1 {[%emt 0:00:00]} Kd4 {[%emt 0:00:38]} 60. Be2 {[%emt 0:01:29]} Ke5 {[%emt 0:05:01]} 0-1